[Event "GER-ch Youth-U18 2022"]
[Site "Willingen"]
[Date "2022.06.05"]
[Round "1.1"]
[White "Koelle, Tobias"]
[Black "Jeschke, Jan"]
[Result "*"]
[ECO "A52"]
[WhiteElo "2431"]
[BlackElo "2130"]
[Annotator "TA"]
[PlyCount "48"]
[EventDate "2022.06.05"]
[EventType "swiss"]
[EventRounds "9"]
[EventCountry "GER"]
[SourceTitle "playchess.com"]
[Source "ChessBase"]
[SourceQuality "1"]
[TimeControl "40/4500+30:900+30"]

{[%evp 23,48,33,40,30,25,26,26,25,31,22,25,23,21,21,26,22,34,28,39,37,82,73,53,62,71,35,61]} 1. d4 {[%emt 0:00:00][%cal Bd2d4,Bd4e5][%mdl 32]} Nf6 {[%emt 0:00:00]} 2. c4 {[%emt 0:00:00]} e5 {[%emt 0:00:00]} 3. dxe5 {[%emt 0:00:00]} Ng4 {[%emt 0:00:00]} 4. Bf4 {[%emt 0:00:00]} Nc6 {[%emt 0:00:00]} 5. Nf3 {[%emt 0:00:00]} Bb4+ {[%emt 0:00:00]} 6. Nbd2 {[%emt 0:00:00]} Qe7 {[%emt 0:00:00]} 7. a3 {[%emt 0:00:00]} Ngxe5 {[%emt 0:00:00]} 8. Nxe5 {[%emt 0:00:00]} Nxe5 {[%emt 0:00:00]} 9. e3 {[%emt 0:00:00]} Bxd2+ {[%emt 0:00:00]} 10. Qxd2 {[%emt 0:00:00]} d6 {[%emt 0:00:00]} 11. Be2 {[%emt 0:00:00]} O-O {[%emt 0:00:00]} 12. O-O {[%emt 0:00:00]} a5 {[%emt 0:00:00]} 13. b3 {[%emt 0:00:00] A52: Budapest Gambit.} b6 {[%emt 0:11:20]} 14. e4 {[%emt 0:00:00]} Bb7 {[%emt 0:02:30]} 15. f3 {[%emt 0:00:00] [#] White has an edge.} Ng6 $146 {[%emt 0:21:47]} ({Predecessor:} 15... Qe6 16. Rfe1 f5 17. exf5 Qxf5 18. Bg3 Rfe8 19. Bf1 Qf6 20. Rad1 Re6 21. Re3 h5 {½-½ (54) Van Oosterom,J (2655)-Gottardi,G (2620) ICCF corr 1996}) 16. Bg3 {[%emt 0:00:00][%cal Bf4g3,Bg3h2,Bh2e5][%mdl 32]} Qf6 {[%emt 0:00:51]} 17. Rae1 {[%emt 0:02:19]} Rfe8 {[%emt 0:06:24]} 18. Kh1 {[%emt 0:02:55]} h5 {[%emt 0:01:39]} 19. h3 {[%emt 0:00:53]} h4 {[%emt 0:00:46]} 20. Bh2 {[%emt 0:00:16]} Nf8 {[%emt 0:04:51]} 21. Bd3 {[%emt 0:06:59]} Ne6 {[%emt 0:02:19]} 22. e5 {[%emt 0:03:44]} dxe5 {[%emt 0:05:37]} 23. Bxe5 {[%emt 0:00:47]} Qd8 {[%emt 0:00:26] [#] ...Nc5 is the strong threat.} 24. Rd1 {[%emt 0:15:18] 0x0.000bd5152febdp-1022s more active pieces.} c5 {[%emt 0:14:45] Weighted Error Value: White=0.06 (flawless) /Black=0.07 (flawless)} *

[Event "GER-ch Youth-U18 2022"]
[Site "Willingen"]
[Date "2022.06.05"]
[Round "1.2"]
[White "von Mettenheim, Johannes"]
[Black "Dahl, Christoph"]
[Result "*"]
[WhiteElo "2176"]
[BlackElo "2368"]
[Annotator "TA"]
[PlyCount "44"]
[EventDate "2022.06.05"]
[EventType "swiss"]
[EventRounds "9"]
[EventCountry "GER"]
[SourceTitle "playchess.com"]
[Source "ChessBase"]
[SourceQuality "1"]
[TimeControl "40/4500+30:900+30"]

{[%evp 9,44,27,34,12,14,-22,-16,-35,-22,-22,-21,-9,-17,0,68,-41,11,0,66,11,21,13,22,25,158,145,190,185,272,56,58,0,0,-373,-368,-439,-227]} 1. d4 {[%emt 0:00:00]} Nf6 {[%emt 0:00:00]} 2. c4 {[%emt 0:00:00]} e6 {[%emt 0:00:00]} 3. g3 {[%emt 0:00:00]} c5 {[%emt 0:00:00]} 4. d5 {[%emt 0:00:00]} exd5 {[%emt 0:00:00]} 5. cxd5 {[%emt 0:00:00]} b5 {[%emt 0:00:00]} 6. a4 {[%emt 0:00:00] A60: Modern Benoni: Early Divergences.} b4 {[%emt 0:00:00]} 7. Bg2 {[%emt 0:00:00]} d6 {[%emt 0:00:00]} 8. Nd2 {[%emt 0:07:09] The position is equal.} g6 {[%emt 0:00:00]} 9. Nc4 {[%emt 0:01:02]} Ba6 {[%emt 0:00:00]} 10. Qb3 {[%emt 0:00:09]} Bg7 {[%emt 0:00:00]} 11. Qe3+ {[%emt 0:01:24]} Kd7 {[%emt 0:04:02] [#]} (11... Kf8 $11 12. Qf4 Ne8) 12. Qf4 {[%emt 0:01:58] [#] White is more active.} (12. Nxd6 $1 $14 Kxd6 13. Qf4+ Kd7 14. Be3) 12... Bxc4 $146 {[%emt 0:07:09]} (12... Kc7 $15) ({Predecessor:} 12... Qe7 13. Na5 Re8 14. Qf3 Kc7 15. Be3 Ne4 16. Rb1 f5 17. g4 fxg4 18. Qxg4 Bc8 19. Qxe4 Qxe4 20. Bxe4 Rxe4 {½-½ (46) Bareket,T (1883)-Hereford,L (1823) Chess.com INT 2020}) 13. Qxc4 $11 {[%emt 0:00:08]} Qb6 {[%emt 0:05:26]} (13... Re8 $11) 14. e4 {[%emt 0:09:22]} ({Better is} 14. Nf3 $14) 14... Re8 {[%emt 0:03:11][%cal Of6e4] aiming for ...Nxe4!} 15. Ne2 {[%emt 0:00:28]} Qa6 {[%emt 0:01:49]} 16. Qc2 {[%emt 0:00:09]} b3 {[%emt 0:02:35]} (16... Kd8 $1 $11 {remains equal.}) 17. Qxb3 $16 {[%emt 0:00:43][%cal Oe1g1]} Nxe4 {[%emt 0:00:09]} 18. O-O $1 {[%emt 0:00:42]} Kc7 {[%emt 0:05:55]} (18... Re7 $142 19. Re1 Qb6) 19. Qf3 $2 {[%emt 0:04:02]} (19. Qc2 $18) 19... Nd7 $1 $14 {[%emt 0:07:39]} 20. Qxf7 {[%emt 0:09:50]} (20. Re1 $1 $14) 20... Bf6 $1 $11 {[%emt 0:00:59]} 21. Qxh7 $2 {[%emt 0:05:56][%mdl 8192]} Qxe2 $19 {[%emt 0:00:47]} ({But not} 21... Re7 $2 22. Qxe7 Bxe7 23. Nf4 $19) 22. Bf4 {[%emt 0:00:08]} Nd2 {[%emt 0:21:11] Weighted Error Value: White=0.72/Black=0.25 (precise)} (22... Bd4 $142 23. Qxg6 Bxf2+ 24. Kh1 {[#]} Rh8 $1) *

[Event "GER-ch Youth-U18 2022"]
[Site "Willingen"]
[Date "2022.06.05"]
[Round "1.3"]
[White "Colbow, Collin"]
[Black "Leonard, Timo"]
[Result "*"]
[ECO "A06"]
[WhiteElo "2360"]
[BlackElo "2018"]
[Annotator "TA"]
[PlyCount "90"]
[EventDate "2022.06.05"]
[EventType "swiss"]
[EventRounds "9"]
[EventCountry "GER"]
[SourceTitle "playchess.com"]
[Source "ChessBase"]
[SourceQuality "1"]
[TimeControl "40/4500+30:900+30"]

{[%evp 9,90,29,30,26,50,0,0,-6,-8,0,2,-15,-2,0,51,34,67,55,59,-10,-7,-10,0,-41,-44,-49,-52,-64,0,0,13,-75,0,0,0,0,117,17,21,21,18,29,27,8,9,0,0,0,0,0,0,-6,0,0,0,0,0,0,0,0,0,0,0,0,0,0,0,0,0,0,0,0,0,0,0,0,0,0,0,0,0,0,0]} 1. Nf3 {[%emt 0:00:00]} d5 {[%emt 0:00:00]} 2. b3 {[%emt 0:00:00]} Nf6 {[%emt 0:00:00]} 3. Bb2 {[%emt 0:00:00]} Bf5 {[%emt 0:00:00]} 4. Nh4 {[%emt 0:00:00]} e6 {[%emt 0:00:00]} 5. Nxf5 {[%emt 0:00:09]} exf5 {[%emt 0:00:00] [#]} 6. e3 $146 {[%emt 0:01:41] A06: Réti Opening: 1 Nf3 d5.} ({Predecessor:} 6. g3 Be7 7. Bh3 Qd7 8. c4 d4 9. e3 Nc6 10. O-O Rd8 11. Na3 O-O 12. Nb5 {1-0 (42) Smith,A (2234)-May,F (2174) Port Erin 2001}) 6... Nbd7 {[%emt 0:02:24]} 7. Qf3 {[%emt 0:07:56]} (7. c4 $14) 7... g6 $1 $11 {[%emt 0:18:25]} 8. c4 {[%emt 0:00:32]} Bg7 {[%emt 0:02:51]} 9. cxd5 {[%emt 0:18:31]} O-O {[%emt 0:00:32]} 10. d4 {[%emt 0:10:47]} Ne4 {[%emt 0:15:28] Threatens to win with ...c5.} 11. Bc4 {[%emt 0:16:17]} c6 {[%emt 0:09:54]} (11... Ndf6 $11) 12. dxc6 $14 {[%emt 0:08:40]} Qa5+ {[%emt 0:01:06]} 13. Kf1 {[%emt 0:01:17]} bxc6 {[%emt 0:00:05]} 14. Qe2 {[%emt 0:06:28]} (14. g4 $14) 14... Rfe8 {[%emt 0:08:55]} 15. g3 {[%emt 0:03:15]} c5 {[%emt 0:07:44]} 16. Kg2 {[%emt 0:03:23]} cxd4 {[%emt 0:01:37]} 17. Rd1 {[%emt 0:00:49]} Ne5 {[%emt 0:08:18] Pair of Knights!} 18. Bxd4 {[%emt 0:01:05]} Nxc4 {[%emt 0:00:12]} (18... Ng4 $1 $15 19. Bxg7 Kxg7 20. Qb2+ Kh6) 19. bxc4 $11 {[%emt 0:00:26]} Rad8 {[%emt 0:01:27]} 20. Qc2 {[%emt 0:03:29]} (20. Nd2 $11) 20... Bxd4 {[%emt 0:03:29]} ({Better is} 20... f4 $1 $17 21. Nd2 (21. f3 $2 fxe3 22. Bxg7 e2 $19) 21... fxe3 $1) 21. exd4 {[%emt 0:00:05]} f4 {[%emt 0:00:10]} 22. Nd2 {[%emt 0:01:00]} Qf5 {[%emt 0:00:56] [#]} (22... Rxd4 $11 23. Nf3 Rxd1 24. Rxd1 fxg3 25. hxg3 Qc7) 23. Nf3 {[%emt 0:00:37]} ({White should try} 23. d5 $1 $16) 23... fxg3 {[%emt 0:01:07]} 24. hxg3 {[%emt 0:00:23]} Nxg3 {[%emt 0:00:54]} 25. Qxf5 {[%emt 0:00:01]} Nxf5 {[%emt 0:00:05]} 26. Rd2 {[%emt 0:01:04] Inhibits Re2.} (26. Rac1 $5 {[%cal Rd4d5]}) 26... Re4 {[%emt 0:00:04] The position is equal.} 27. Rad1 {[%emt 0:00:14]} Rg4+ {[%emt 0:00:18]} 28. Kf1 {[%emt 0:00:41]} Rf4 {[%emt 0:00:57]} 29. Rd3 {[%emt 0:00:14]} g5 {[%emt 0:01:54]} 30. Nxg5 {[%emt 0:00:48]} Rfxd4 {[%emt 0:00:07]} (30... Rdxd4 {is interesting.} 31. Rxd4 Nxd4 32. Rd3 h6) 31. Rxd4 {[%emt 0:00:14]} Rxd4 {[%emt 0:00:06]} 32. Rxd4 {[%emt 0:00:28]} Nxd4 {[%emt 0:00:04][%mdl 4096] Endgame KN-KN} 33. f4 {[%emt 0:00:53]} Ne6 {[%emt 0:01:23]} 34. Nxe6 {[%emt 0:00:32]} fxe6 {[%emt 0:00:04] K3P-K3P} 35. Kf2 {[%emt 0:00:06]} Kf7 {[%emt 0:00:13][%cal Oe6e5] Strongly threatening ...e5!} 36. Kf3 {[%emt 0:00:05]} Ke7 {[%emt 0:01:40]} 37. Kg4 {[%emt 0:00:04]} Kd6 {[%emt 0:00:21]} 38. Kg5 {[%emt 0:00:32]} Kc5 {[%emt 0:00:13]} 39. Kf6 {[%emt 0:01:04]} h5 {[%emt 0:01:11] And now ...h4 would win.} 40. Kxe6 {[%emt 0:00:15] K3P-KPP} h4 {[%emt 0:00:05] Hoping for ...h3.} 41. f5 {[%emt 0:15:03] Black must now prevent f6.} h3 {[%emt 0:15:16] aiming for ...h2.} 42. f6 {[%emt 0:00:04] f7 is the strong threat.} h2 {[%emt 0:00:08]} 43. f7 {[%emt 0:00:03]} h1=Q {[%emt 0:00:16]} 44. f8=Q+ {[%emt 0:00:07]} Kxc4 {[%emt 0:00:08]} 45. Qc8+ {[%emt 0:00:44]} Kb5 {[%emt 0:01:33] Weighted Error Value: White=0.18 (very precise) /Black=0.13 (very precise)} *

[Event "GER-ch Youth-U18 2022"]
[Site "Willingen"]
[Date "2022.06.05"]
[Round "1.4"]
[White "Weidemann, Jakob"]
[Black "Weishaeutel, Moritz"]
[Result "1/2-1/2"]
[ECO "C55"]
[WhiteElo "2047"]
[BlackElo "2406"]
[Annotator "TA"]
[PlyCount "54"]
[EventDate "2022.06.05"]
[EventType "swiss"]
[EventRounds "9"]
[EventCountry "GER"]
[SourceTitle "playchess.com"]
[Source "ChessBase"]
[SourceQuality "1"]
[TimeControl "40/4500+30:900+30"]

{[%evp 10,54,45,27,28,14,37,30,14,28,39,37,41,22,56,50,39,59,54,27,106,102,108,118,112,109,118,62,70,50,59,47,54,-17,0,0,0,0,0,0,0,0,0,0,0,0,0]} 1. e4 {[%emt 0:00:00]} e5 {[%emt 0:00:00]} 2. Nf3 {[%emt 0:00:00]} Nc6 {[%emt 0:00:00]} 3. Bc4 {[%emt 0:00:00]} Nf6 {[%emt 0:00:00]} 4. d3 {[%emt 0:00:00]} h6 {[%emt 0:00:00][%cal Bh7h6,Bh6h5][%mdl 32]} 5. O-O {[%emt 0:00:00]} d6 {[%emt 0:00:00]} 6. c3 {[%emt 0:00:00]} g5 $1 {[%emt 0:00:00][%cal Bg7g5,Bg5g4][%mdl 4] outshines the older 6...g6. C55: Two Knights: 4 d3, 4 d4 exd4 5 e5 and Max Lange Attack.} 7. Re1 {[%emt 0:08:25]} Bg7 {[%emt 0:00:00]} 8. a4 {[%emt 0:00:15]} g4 {[%emt 0:00:00] White has an edge.} 9. Nfd2 {[%emt 0:00:09]} h5 {[%emt 0:00:00] [#]} 10. Na3 $146 {[%emt 0:03:57]} ({Predecessor:} 10. Nf1 h4 11. Ne3 Bh6 12. b4 g3 13. fxg3 hxg3 14. h3 Bxh3 15. gxh3 Bxe3+ 16. Rxe3 Rxh3 {1-0 (49) Petrosian,T (2612)-Dilanyan,G (2294) Jermuk 2019}) 10... h4 {[%emt 0:00:00][%cal Og4g3]} 11. Nf1 {[%emt 0:01:40]} Nh5 {[%emt 0:12:27]} 12. Nc2 {[%emt 0:01:12]} g3 {[%emt 0:01:02]} 13. fxg3 {[%emt 0:04:48]} hxg3 {[%emt 0:00:06]} 14. Nxg3 {[%emt 0:00:49]} Nxg3 {[%emt 0:02:35]} (14... Qh4 $1 $11) 15. Qf3 $16 {[%emt 0:00:31][%csl Gc4][%cal Rf3f7] [#]} Nf5 {[%emt 0:08:30]} 16. exf5 {[%emt 0:00:18]} Qh4 {[%emt 0:00:09]} 17. h3 {[%emt 0:02:08]} Ne7 {[%emt 0:13:21]} 18. f6 {[%emt 0:07:35]} (18. Rf1 $16 {Strongly threatening f6.} f6 19. Ne3) 18... Qxf6 $14 {[%emt 0:03:39]} 19. Qxf6 {[%emt 0:00:19]} Bxf6 {[%emt 0:00:05][%cal Bg7f6,Bf6g5,Bg5c1][%mdl 32]} 20. Rf1 {[%emt 0:00:45]} Ng8 {[%emt 0:01:08]} 21. g4 {[%emt 0:02:46]} (21. a5 $14) 21... Rxh3 {[%emt 0:07:27] The position is equal.} 22. g5 $36 {[%emt 0:00:30][%mdl 2048] White has good play.} Bxg5 {[%emt 0:00:56] [#] Hoping for ...Rg3+.} 23. Bxf7+ {[%emt 0:00:44]} ({Of course not} 23. Bxg5 Rg3+ 24. Kh2 Rxg5 25. Rxf7 Bd7 $17) 23... Kd7 $1 {[%emt 0:00:04][%cal Be8d7,Bd7d8,Bd8e7][%mdl 32]} 24. Bxg8 {[%emt 0:07:58] Active counter play!} Bxc1 {[%emt 0:00:11]} 25. Rf7+ {[%emt 0:00:59]} Kd8 {[%emt 0:01:42]} 26. Rf8+ {[%emt 0:00:35]} Ke7 {[%emt 0:00:05]} 27. Rf7+ {[%emt 0:00:10]} Kd8 {[%emt 0:03:59] Weighted Error Value: White=0.14 (very precise) /Black=0.11 (very precise)} 1/2-1/2

[Event "GER-ch Youth-U18 2022"]
[Site "Willingen"]
[Date "2022.06.05"]
[Round "1.5"]
[White "Fromm, Marius"]
[Black "Hassemeier, Mika"]
[Result "*"]
[ECO "B67"]
[WhiteElo "2317"]
[BlackElo "2127"]
[Annotator "TA"]
[PlyCount "89"]
[EventDate "2022.06.05"]
[EventType "swiss"]
[EventRounds "9"]
[EventCountry "GER"]
[SourceTitle "playchess.com"]
[Source "ChessBase"]
[SourceQuality "1"]
[TimeControl "40/4500+30:900+30"]

{[%evp 24,88,43,54,46,47,54,43,47,27,28,20,24,24,17,39,31,20,55,35,50,47,58,62,53,57,126,128,234,231,238,241,231,229,241,163,160,163,163,89,783,208,214,192,504,502,502,501,6310,6303,29969,6137,29990,29966,29987,29988,29993,29994,29994,29995,29995,29996,29997,29998,29998,29999,29999]} 1. e4 {[%emt 0:00:00]} c5 {[%emt 0:00:00]} 2. Nf3 {[%emt 0:00:00]} d6 {[%emt 0:00:00]} 3. d4 {[%emt 0:00:00]} cxd4 {[%emt 0:00:00]} 4. Nxd4 {[%emt 0:00:00]} Nf6 {[%emt 0:00:00]} 5. Nc3 {[%emt 0:00:00]} Nc6 {[%emt 0:00:00]} 6. Bg5 {[%emt 0:00:00]} e6 {[%emt 0:00:00]} 7. Qd2 {[%emt 0:00:00]} a6 {[%emt 0:00:00]} 8. O-O-O {[%emt 0:00:00]} Bd7 {[%emt 0:00:00]} 9. f4 {[%emt 0:00:00][%cal Bf2f4,Bf4f5][%mdl 32]} b5 {[%emt 0:00:00]} 10. Bxf6 {[%emt 0:00:00]} gxf6 {[%emt 0:00:00]} 11. Kb1 {[%emt 0:00:00]} Qb6 {[%emt 0:00:00]} 12. Nxc6 {[%emt 0:00:00]} Bxc6 {[%emt 0:00:00]} 13. f5 {[%emt 0:00:00]} b4 {[%emt 0:00:00] B67: Sicilian: Richter-Rauzer: 7...a6 8 0-0-0 Bd7, lines without 9 f4 Be7.} 14. Ne2 {[%emt 0:00:00][%cal Bc3e2,Be2g3,Bg3h5][%mdl 32]} e5 {[%emt 0:00:00]} 15. Ng3 {[%emt 0:00:00]} Qc5 {[%emt 0:02:20] Against Bc4. White is slightly better.} 16. Nh5 {[%emt 0:09:14]} Be7 {[%emt 0:00:11]} 17. Bd3 {[%emt 0:11:27]} O-O-O {[%emt 0:00:23]} 18. Qe2 {[%emt 0:17:01]} d5 {[%emt 0:09:23]} 19. exd5 {[%emt 0:02:16]} Bxd5 {[%emt 0:01:05]} 20. Ng3 {[%emt 0:06:47]} Kc7 {[%emt 0:23:23]} 21. Ne4 {[%emt 0:02:43] [#]} Bxe4 $146 {[%emt 0:02:57]} ({Predecessor:} 21... Qb6 22. Nd2 a5 23. Be4 a4 24. Bxd5 Rxd5 25. Nc4 Qc5 26. Rxd5 Qxd5 27. Rd1 Qb5 {½-½ (38) Pietrocola,R (2193)-Lupo,A (2320) ICCF email 2020}) 22. Bxe4 {[%emt 0:00:13]} Rxd1+ $1 {[%emt 0:02:10]} 23. Rxd1 {[%emt 0:00:01]} Rd8 {[%emt 0:10:40]} 24. Rc1 {[%emt 0:00:20] Threatens to win with c3.} Bf8 {[%emt 0:05:39]} ({Black should play} 24... Kb6 $14) 25. Qxa6 $16 {[%emt 0:02:14]} Qb6 {[%emt 0:09:30] Prevents Qb7+.} (25... Rd7 $16 26. c4 (26. c3 Bh6 $11) 26... Bh6) 26. Qc4+ $18 {[%emt 0:00:05]} Kb8 {[%emt 0:01:08]} 27. Qxf7 $40 {[%emt 0:00:41][%mdl 128] White goes for the king.} Bh6 {[%emt 0:01:15]} 28. Re1 {[%emt 0:00:49]} Rd4 {[%emt 0:02:50]} 29. Qg8+ {[%emt 0:00:40]} (29. Qxh7 {[#]} Rxe4 $1 30. Rd1 (30. Qg8+ Ka7 $15) 30... Bd2 $1 $15) 29... Qd8 {[%emt 0:02:04]} 30. Qg4 {[%emt 0:07:14]} Bd2 {[%emt 0:01:51]} 31. Rf1 {[%emt 0:01:56]} ({Don't blunder} 31. Qg7 $2 Rd7 32. Qg4 (32. Qg3 $2 Bxe1 33. Qd3 Rxd3 $19) 32... Bxe1 $19) (31. Qe2 $18 {Qb5+ would kill now.} Qd7 32. Rh1) 31... Bc3 $2 {[%emt 0:08:15][%mdl 8192] Black cannot hold the game after this.} 32. Qe2 $2 {[%emt 0:02:12]} (32. bxc3 bxc3 33. Ka1) 32... Qb6 {[%emt 0:01:00]} 33. Bd3 {[%emt 0:01:14]} Qc5 $2 {[%emt 0:00:50]} (33... Rd6 {is tougher.} 34. Qh5 (34. bxc3 bxc3+ 35. Bb5 Rd5 $18) 34... e4) 34. bxc3 {[%emt 0:12:30]} bxc3 {[%emt 0:01:41] ( -> ...Qb4+)} 35. Ka1 {[%emt 0:00:02]} e4 {[%emt 0:02:34]} (35... Rb4 $142 36. Rd1 Ka7) 36. Bxe4 {[%emt 0:07:31][%cal Bd3e4,Be4d5,Bd5e6][%mdl 32] Intending Bf3 and mate.} Rb4 {[%emt 0:01:27]} 37. Rd1 {[%emt 0:03:21]} (37. Bf3 $142 Qb5 38. Qxb5+ Rxb5 39. Rb1 Rxb1+ 40. Kxb1 Kc7 41. a4 h5 42. Bxh5) 37... Rb2 {[%emt 0:00:21]} 38. Bd5 {[%emt 0:00:14] White mates.} Qb4 {[%emt 0:00:51]} 39. Qe8+ {[%emt 0:00:56]} Kc7 {[%emt 0:00:07]} 40. Qc6+ {[%emt 0:00:15]} Kb8 {[%emt 0:00:07]} 41. Qa8+ {[%emt 0:15:34]} Kc7 {[%emt 0:15:06]} 42. Qa7+ {[%emt 0:00:14]} Kd6 {[%emt 0:01:40]} 43. Be6+ {[%emt 0:00:38]} Ke5 {[%emt 0:00:05]} 44. Qe3+ {[%emt 0:00:12]} Qe4 {[%emt 0:00:04]} 45. Rd5# {[%emt 0:00:15] Weighted Error Value: White=0.33/Black=0.72} *

[Event "GER-ch Youth-U18 2022"]
[Site "Willingen"]
[Date "2022.06.05"]
[Round "1.6"]
[White "Muller, Magnus"]
[Black "Boder, Jan"]
[Result "*"]
[ECO "C55"]
[WhiteElo "1464"]
[BlackElo "2334"]
[Annotator "TA"]
[PlyCount "94"]
[EventDate "2022.06.05"]
[EventType "swiss"]
[EventRounds "9"]
[EventCountry "GER"]
[SourceTitle "playchess.com"]
[Source "ChessBase"]
[SourceQuality "1"]
[TimeControl "40/4500+30:900+30"]

{[%evp 20,94,0,0,11,-4,56,0,2,0,16,16,16,16,19,19,20,21,20,11,19,10,11,0,0,0,0,-27,0,0,0,0,0,0,-140,0,0,0,0,0,91,11,119,27,125,0,131,119,180,188,293,293,306,298,299,255,402,402,402,319,395,391,384,189,373,314,185,97,97,97,97,97,117,97,117,97,117]} 1. e4 {[%emt 0:00:00]} e5 {[%emt 0:00:00]} 2. Nf3 {[%emt 0:00:00]} Nc6 {[%emt 0:00:00]} 3. Bc4 {[%emt 0:00:00]} Nf6 {[%emt 0:00:00]} 4. d4 {[%emt 0:00:00]} exd4 {[%emt 0:00:00]} 5. e5 {[%emt 0:00:00]} d5 {[%emt 0:00:00]} 6. Bb5 {[%emt 0:00:00]} Ne4 {[%emt 0:00:00]} 7. Nxd4 {[%emt 0:00:00]} Bd7 {[%emt 0:00:00]} 8. Bxc6 {[%emt 0:00:00]} bxc6 {[%emt 0:00:00]} 9. O-O {[%emt 0:00:00]} Bc5 {[%emt 0:00:00]} 10. f3 {[%emt 0:00:00]} Ng5 {[%emt 0:00:00]} 11. Be3 {[%emt 0:00:00]} Ne6 {[%emt 0:20:42] C56: Two Knights: 4 d4 exd4 5 0-0 Nxe4.} 12. f4 {[%emt 0:01:16]} f6 {[%emt 0:07:23] [#]} (12... Qe7 $11) 13. Nc3 $146 {[%emt 0:24:36]} (13. c3 $14 O-O 14. f5 fxe5 15. fxe6 Bxe6 16. Nc2 (16. Nxe6 Bxe3+ 17. Kh1 Rxf1+ 18. Qxf1 Qd6 $15)) ({Predecessor:} 13. f5 Nxd4 14. Bxd4 Bxd4+ 15. Qxd4 fxe5 16. Qxe5+ Qe7 17. Qxc7 O-O 18. Nc3 Qc5+ 19. Kh1 Bxf5 {1-0 (29) Voigt,M (2235)-Houser,P Prague 1990}) 13... O-O $11 {[%emt 0:07:11] The position is equal.} 14. Na4 {[%emt 0:05:38] Pair of Knights!} fxe5 {[%emt 0:11:50]} 15. Nxc5 {[%emt 0:04:05]} Nxc5 {[%emt 0:00:50] [#]} 16. Nxc6 {[%emt 0:06:11]} Bxc6 {[%emt 0:00:41]} 17. Bxc5 {[%emt 0:00:04]} Rxf4 {[%emt 0:05:03]} 18. Rxf4 {[%emt 0:08:00]} exf4 {[%emt 0:00:06]} 19. Qd4 {[%emt 0:01:32]} f3 {[%emt 0:05:24]} (19... Qg5 {with more complications.} 20. Rf1 f3 21. Rxf3 Qc1+) 20. gxf3 {[%emt 0:06:31]} (20. Qe3 {looks sharper.} Qf6 21. Bd4 Qh4 22. Rd1) 20... Qe8 {[%emt 0:01:59] Against Re1} 21. Bb4 {[%emt 0:05:35]} Qf7 {[%emt 0:02:29]} 22. Re1 {[%emt 0:02:18]} Re8 {[%emt 0:01:31] Inhibits Re7.} 23. Qxa7 {[%emt 0:08:32]} Qg6+ {[%emt 0:04:40]} 24. Kh1 {[%emt 0:00:40]} d4 {[%emt 0:01:45][%cal Rc6f3]} 25. Rxe8+ {[%emt 0:01:45]} Qxe8 {[%emt 0:00:26]} 26. Qxd4 {[%emt 0:04:46]} Bxf3+ {[%emt 0:04:51][%mdl 4096] Endgame KQB-KQB} 27. Kg1 {[%emt 0:00:05][%cal Bh1g1,Bg1f2,Bf2e3,Be3d2][%mdl 32]} Qg6+ {[%emt 0:00:16]} 28. Kf2 {[%emt 0:00:05] Qd8+ would kill now.} Qg2+ {[%emt 0:01:37]} 29. Ke3 {[%emt 0:00:05] aiming for Qd8+.} Bd5 {[%emt 0:04:12]} (29... Qe2+ $1 $11 30. Kf4 Bh5) 30. Qf4 {[%emt 0:02:24]} (30. c4 $16 Qh3+ 31. Kd2 Qxh2+ 32. Kd3 Qg3+ 33. Kc2) 30... Qg1+ {[%emt 0:01:54] [#]} (30... Bf7 $11) 31. Qf2 {[%emt 0:00:16]} ({Better is} 31. Kd2 $1 $16 {[%csl Gb4][%cal Rf4f8]} Bf7 32. b3) 31... Qg5+ {[%emt 0:01:53]} (31... Qxf2+ $1 $11 32. Kxf2 Bxa2) 32. Qf4 {[%emt 0:00:04]} (32. Kd4 $16 {[%csl Gb4][%cal Rf2f8]} h6 33. b3) 32... Qd8 {[%emt 0:00:23]} (32... Qg1+ $11 {keeps the balance.} 33. Kd2 (33. Qf2 Qxf2+ 34. Kxf2 Bxa2 $14) 33... Qg2+ 34. Kc3 h6) 33. b3 {[%emt 0:02:47]} Qe8+ {[%emt 0:01:02]} (33... Bf7 $16) 34. Kd2 $18 {[%emt 0:00:14]} c6 {[%emt 0:00:41]} (34... Qf7 $142 35. Qd4 Qf5) 35. Kc1 {[%emt 0:03:59]} h6 {[%emt 0:00:06]} 36. Kb2 {[%emt 0:00:05]} Qe2 {[%emt 0:02:09]} 37. Qd2 {[%emt 0:00:20]} Qxd2 {[%emt 0:01:14]} (37... Bf3 $142 38. Qc3 Be4) 38. Bxd2 {[%emt 0:00:04] KB-KB} Kf7 {[%emt 0:00:03]} 39. Kc3 {[%emt 0:00:42]} Ke6 {[%emt 0:00:03]} 40. Kd4 {[%emt 0:00:13]} Kd7 {[%emt 0:00:23]} 41. Bf4 {[%emt 0:15:21]} (41. c4 $142 Bf3 42. b4) 41... Kc8 $2 {[%emt 0:15:15]} (41... g5) 42. a4 {[%emt 0:00:15]} Kb7 {[%emt 0:00:06] [#]} 43. c4 {[%emt 0:00:06]} ({White should play} 43. b4 $1 $18) 43... Bf3 $16 {[%emt 0:00:51] White is better.} 44. b4 {[%emt 0:00:08] And now Kc5 would win.} Bd1 {[%emt 0:01:01]} 45. a5 {[%emt 0:01:13] b5 is the strong threat.} Ka6 {[%emt 0:00:12] Against b5+} 46. Kc5 {[%emt 0:00:16]} Be2 {[%emt 0:00:07]} 47. Bd6 {[%emt 0:02:25]} h5 {[%emt 0:00:07] Weighted Error Value: White=0.32/Black=0.45} *